Cogmind - Beta 14 @@@ ROGUE MODE // 2024.08.10 @ 19:23:56 Player: MORONI274 Result: Destroyed by G-34 Mercenary with Small Laser Performance ------------- Evolutions (0) 0 Regions Visited (1) 200 Robots Destroyed (12) 60 Value Destroyed (337) 337 Prototype IDs (0) 0 Alien Tech Used (0) 0 Bonus (0) 0 TOTAL SCORE: 597 Bonus ------- None Cogmind --------- Core Integrity 0/250 Matter 300/300 Energy 250/250 System Corruption 7% Temperature Cool (6) Movement Core (450) Ox8 Location -10/Materials Parts ------- > --- POWER (1) -------- Ion Engine > --- PROPULSION (2) --- Wheel > --- UTILITY (2) ------ Large Storage Unit > --- WEAPON (2) ------- Welding Torch > --- INVENTORY (15) --- Aluminum Leg Aluminum Leg Compact Wheel Improved Heat Sink High-capacity Battery (250) Visual Processing Unit Sensor Array Sensor Array Peak State ------------ > --- POWER ------------ Light Nuclear Core > --- PROPULSION ------- Light Treads Light Treads > --- UTILITY ---------- Large Storage Unit Propulsion Shielding > --- WEAPON ----------- EM Pulse Gun Small Laser > --- INVENTORY -------- Ion Engine Light Treads Aluminum Leg Aluminum Leg Wheel Compact Wheel Visual Processing Unit Particle Gun Light Assault Rifle Grenade Launcher Mining Laser [Rating: 10] Favorites ----------- Power Light Nuclear Core Engine Ion Engine Power Core Light Nuclear Core Propulsion Light Treads Treads Light Treads Wheel Wheel Utility Large Storage Unit Storage Large Storage Unit Protection Propulsion Shielding Weapon Small Laser Energy Gun Small Laser Ballistic Gun Light Assault Rifle Launcher Grenade Launcher Special Weapon Welding Torch Build | -11 -10 ------- Run | Yrd Mat Slots Evolved . | . . Power . | . . Propulsion . | . . Utility . | . . Weapon . | . . Parts Attached 19 | 6 13 Power 3 | 1 2 Engine 2 | 1 1 Core 1 | . 1 Reactor . | . . Propulsion 5 | 2 3 Treads 4 | 2 2 Leg . | . . Wheel 1 | . 1 Hover . | . . Flight . | . . Utility 4 | 1 3 Device . | . . Storage 2 | 1 1 Processor . | . . Hackware . | . . Protection 2 | . 2 Artifact . | . . Weapon 7 | 2 5 Energy Gun 3 | 2 1 Energy Cannon . | . . Ballistic Gun 1 | . 1 Ballistic Cannon . | . . Launcher 1 | . 1 Special Weapon 2 | . 2 Impact Weapon . | . . Slashing Weapon . | . . Piercing Weapon . | . . Special Melee Weapon . | . . Unidentified Prototypes . | . . Parts Lost 11 | . 11 Power 1 | . 1 Propulsion 3 | . 3 Utility 2 | . 2 Weapon 5 | . 5 Highest Loss Streak 4 | . 4 To Critical Strikes . | . . Average Slot Usage (%) 90 | . 90 Engine 5 | . 5 Core 8 | . 8 Treads 25 | . 25 Wheel 1 | . 1 Storage 14 | . 14 Protection 7 | . 7 Energy Gun 19 | . 19 Ballistic Gun 3 | . 3 Launcher 1 | . 1 Peak Build Rating 10 | 6 10 Average Rating 8 | 4 8 On Entrance 3 | . 6 Naked Turns . | . . Heaviest Build 33 | 13 33 Greatest Support 40 | 40 40 Greatest Overweight (x) 3 | 3 2 Average Overweight (x) . | . . Largest Inventory Capacity 15 | 8 15 Average Capacity 13 | 7 13 Most Carried 15 | 7 15 Average Carried 10 | 3 11 Final Capacity 15 | 8 15 Final Carried 8 | 7 8 Class Distribution -------------------- 100% | Mutant Dominant Class ---------------- Mutant | -10/Materials Resources | -11 -10 ----------- Run | Yrd Mat Matter Collected 390 | 203 187 Remotely . | . . Salvage Created 344 | . 344 Parts 21 | 1 20 Haulers Intercepted . | . . Recyclers Shooed 1 | . 1 Parts Field Recycled . | . . Retrieved Matter . | . . Parts Self-Destructed . | . . Prevented . | . . Kills | -11 -10 ------- Run | Yrd Mat Combat Hostiles Destroyed 10 | . 10 Guns 8 | . 8 AOE 2 | . 2 Classes Destroyed 4 | 1 3 Tunneler 1 | 1 . Watcher 1 | . 1 Swarmer 3 | . 3 Grunt 7 | . 7 Best Kill Streak 4 | 1 4 Combat Bots Only 4 | . 4 Max Kills in Single Turn 1 | 1 1 Gunslinging . | . . Exploded 1 | . 1 Melee . | . . Uniques/NPCs Destroyed . | . . Combat | -11 -10 -------- Run | Yrd Mat Hostile Shots Fired 137 | . 137 Missed 40 | . 40 Damage Taken 1406 | . 1406 Core 251 | . 251 Absorbed by Shields . | . . Redirected to Shielding 115 | . 115 Core Remaining (%) 100 | 100 . Volleys Fired 52 | . 52 Largest 2 | . 2 Hottest 95 | . 95 Shots Fired 102 | . 102 Gun 98 | . 98 Cannon . | . . Launcher 4 | . 4 Special . | . . Kinetic 31 | . 31 Thermal 51 | . 51 Explosive 4 | . 4 Electromagnetic 16 | . 16 Robot Hit Streak 6 | . 6 Robot Miss Streak 5 | . 5 Penetration Max . | . . Secondary Targets 1 | . 1 Max Gunslinging Chain 1 | . 1 Shots Hit Robots 51 | . 51 Core Hits 26 | . 26 Critical Kills . | . . Critical Parts Destroyed . | . . Critical Strikes . | . . Melee Attacks . | . . Impact . | . . Slashing . | . . Piercing . | . . Sneak Attacks . | . . Combat Hostiles . | . . Follow-up Attacks . | . . Damage Inflicted 873 | 8 865 Guns 565 | . 565 Cannons . | . . Explosions 186 | . 186 Melee . | . . Ramming 122 | 8 114 Kinetic 143 | . 143 Thermal 293 | . 293 Explosive 186 | . 186 Electromagnetic 129 | . 129 Impact . | . . Slashing . | . . Piercing . | . . Highest Corruption 7 | . 7 Average Corruption 5 | . 5 Corruption Purged . | . . Corruption Blocked . | . . Effects 4 | . 4 Message Errors 1 | . 1 Matter Fused 2 | . 2 Alerts 1 | . 1 Overload Shots . | . . Overflow Damage 4 | . 4 Projectiles . | . . Explosions 4 | . 4 Melee . | . . Knockbacks 2 | . 2 Impact 2 | . 2 Kinetic . | . . Secondary . | . . Self-Inflicted Damage 69 | . 69 Shots 1 | . 1 Rammed 29 | 4 25 Targets Rammed 30 | 5 25 Kicked . | . . Crushed 1 | 1 . Highest Temperature 212 | . 212 Average Temperature 74 | . 74 Received Heat Transfer 444 | . 444 Siege Activations . | . . Robots Corrupted . | . . Combat Hostiles . | . . Parts Fried . | . . Impact Corruptions . | . . Robots Melted . | . . Combat Hostiles . | . . Parts Melted . | . . Heat Transferred 662 | . 662 Parts Sabotaged . | . . Parts Stolen . | . . Parts Stripped . | . . Power Chain Reactions . | . . Alert | -11 -10 ------- Run | Yrd Mat Peak Influence 179 | 5 179 Initial 3 | . 3 Average 56 | . 63 Maximum Alert Level . | . . Low Security (%) 100 | 100 100 Level 1 . | . . Level 2 . | . . Level 3 . | . . Level 4 . | . . Level 5 . | . . High Security . | . . Max Security . | . . Squads Dispatched 2 | . 2 Investigation . | . . Extermination . | . . Reinforcement 2 | . 2 Assault . | . . Garrison . | . . Intercept . | . . Searches Triggered . | . . Construction Impeded . | . . Haulers Reinforced . | . . Active Scanning Responses . | . . Cargo Convoy Interrupts . | . . Stealth | -11 -10 --------- Run | Yrd Mat Distress Signals 1 | . 1 Communications Jammed . | . . Distress Signals . | . . Times Spotted 21 | . 21 Peak Tracking Total 5 | . 5 Tactical Retreats 2 | . 2 Traps | -11 -10 ------- Run | Yrd Mat Traps Triggered 2 | . 2 Indirectly . | . . Trap Hack Attempts . | . . Triggered . | . . Disarmed . | . . Reprogrammed . | . . Reused . | . . Traps Extracted . | . . Installed . | . . Triggered . | . . Machines | -11 -10 ---------- Run | Yrd Mat Machines Disabled 2 | . 2 Max in Single Turn 1 | . 1 Machines Repaired . | . . Machines Dismantled . | . . Machines Sabotaged . | . . Overloaded Fab Kills . | . . Hacking | -11 -10 --------- Run | Yrd Mat Machines Accessed 1 | . 1 Terminals 1 | . 1 Fabricators . | . . Repair Stations . | . . Recycling Units . | . . Scanalyzers . | . . Garrison Access . | . . Total Hacks 4 | . 4 Successful 3 | . 3 Failed 1 | . 1 Catastrophic . | . . Database Lockouts . | . . Manual . | . . Terminals 4 | . 4 Fabricators . | . . Repair Stations . | . . Recycling Units . | . . Scanalyzers . | . . Garrison Access . | . . Terminal Hacks 3 | . 3 Alert Level 2 | . 2 Maintenance Status 1 | . 1 Fabricator Hacks . | . . Repair Station Hacks . | . . Recycling Unit Hacks . | . . Scanalyzer . | . . Garrison Access Hacks . | . . Unauthorized Hacks . | . . Terminals . | . . Fabricators . | . . Repair Stations . | . . Recycling Units . | . . Scanalyzers . | . . Garrison Access . | . . Data Cores Recovered . | . . Used . | . . Hacking Detections . | . . Full Trace Events . | . . Feedback Events . | . . Feedback Blocked . | . . Robot Schematics Acquired . | . . Robots Built . | . . Authchips . | . . Time . | . . Total Robot Build Rating . | . . Part Schematics Acquired . | . . Parts Built . | . . Authchips . | . . Time . | . . Total Part Build Rating . | . . Parts Repaired . | . . Time . | . . Parts Recycled . | . . Recycled Matter . | . . Retrieved Matter . | . . Retrieved Components . | . . Parts Scanalyzed . | . . Part Schematics Acquired . | . . Parts Damaged . | . . Bothacking | -11 -10 ------------ Run | Yrd Mat Used RIF Installer . | . . Robots Hacked . | . . Non-combat . | . . Combat . | . . Robot Hacks Applied . | . . Relay Couplers Released . | . . Fabnet Peak Effective % . | . . Robots Rewired . | . . Allies Hacked . | . . Hacks Repelled . | . . Allies | -11 -10 -------- Run | Yrd Mat Total Allies . | . . Largest Group . | . . Highest-Rated Group . | . . Highest-Rated Ally . | . . Total Orders . | . . Ally Attacks . | . . Total Damage . | . . Kills . | . . Allies Corrupted . | . . Allies Melted . | . . Intel | -11 -10 ------- Run | Yrd Mat Robot Analysis Total . | . . Derelict Logs Recovered . | . . Drone Launches . | . . Drone Recoveries . | . . Exploration | -11 -10 ------------- Run | Yrd Mat Turns Passed 1112 | 119 993 Spaces Moved 578 | 72 506 Core 26 | 26 . Treads 482 | 46 436 Legs . | . . Wheels 70 | . 70 Hover . | . . Flight . | . . Fastest Speed 50 | 50 110 Average Speed 150 | 133 153 Slowest Speed 240 | 200 240 Overloaded Moves . | . . Propulsion Burnouts . | . . Robots Hopped . | . . Cave-ins Triggered 1 | . 1 Exploration Rate (%) 31 | 5 58 Regions Visited 1 Branch Regions . Pre-discovered Areas . | . . Known Exits Taken . | . . Unknown Exits Taken 1 | 1 . Scrap Searched . | . . Spaces Dug . | . . Terrain Destroyed 28 | . 28 Melee . | . . Projectile . | . . AOE 28 | . 28 Terrain Rammed 2 | . 2 Walls Destroyed . | . . Machines Disabled . | . . Actions | -11 -10 --------- Run | Yrd Mat Total 706 | 89 617 Wait 7 | . 7 Move 577 | 71 506 Hop . | . . Pick Up 17 | 7 10 Fast Attach 10 | 6 4 Attach 9 | . 9 Detach . | . . Swap . | . . Drop 2 | . 2 Fire 52 | . 52 Melee . | . . Ram 25 | . 25 Kick . | . . Crush 7 | 5 2 Escape Stasis . | . . Rewire . | . . Trap . | . . Miscellaneous . | . . Route ------- -11/Scrapyard -10/Materials (discovered 1 exit: [*Min]) History --------- Turn | Location | Event 28 | -11/Scrapyard | Discovered new exit (range 14) 120 | -11/Scrapyard | Entered Materials 306 | -10/Materials | Build established: Mutant 615 | -10/Materials | Discovered new exit (range 12) 729 | -10/Materials | Core integrity fell below 50% 888 | -10/Materials | Lost 4 parts (1p1n2w) 994 | -10/Materials | Crushed by falling debris 1035 | -10/Materials | Lost 4 parts (1n1u2w) 1095 | -10/Materials | Core integrity fell below 20% 1113 | -10/Materials | Destroyed by G-34 Mercenary with Small Laser Last Messages --------------- 01092_ Welding Torch broken. 01092_ Destabilizing: Short circuit. 01093_ Slammed into G-34 Mercenary. 01094_ G-34 Mercenary knocked back. 01094_ Destabilizing: Core damaged (-10). 01095_ Slammed into G-34 Mercenary. 01095_ G-34 Mercenary knocked back. 01095_ Destabilizing: Core damaged (-10). 01096_ Slammed into G-34 Mercenary. 01099_ Destabilizing: Core damaged (-2). 01100_ Slammed into G-34 Mercenary. 01102_ Destabilizing: Core damaged (-12). 01103_ Slammed into G-34 Mercenary. 01104_ System corrupted: IFF burst signal emitted. 01104_ Slammed into G-34 Mercenary. 01105_ Wheel broken. 01105_ Destabilizing: Short circuit. 01109_ Broken Lgt. Treads destroyed. 01110_ Slammed into G-34 Mercenary. Map ----- +----------------------------------------------------+ | | | | | | | | | | | | | | | | | | | | | | | | | | | | | | | | | | | | | | | | | | | ????##############???????????????????????? | | ???# # #???????????????????????? | | ???# # """#????######?????????????? | | ???# # """#????# %% #?????????????? | | ???# # """#????#% @ #?????????????? | | ???# # ###### % g#?????????????? | | #### ####+###### # % #?????????????? | | ###+### #### + #?????????????? | | ^^^^^ # #?????????????? | | % % # #?????????????? | | % # #?????????????? | | ####### #### # #?????????????? | | ########### ##??# ######?????????????? | | # #???# ####???????????????? | | """" """" # #???# !##??????????????? | | """" """" + #???# !#??????????????? | | """" """" # #???# !#??????????????? | | # #???# #??????????????? | | ##+######## #???# !#??????????????? | | ?# #????####+###### !##??????????????? | | ?# ###### ## ####???????????????? | | ?# + """ # #?????????????????? | | ?######## """ # #?????????????????? | | ????????# """ # #?????????????????? | | ????????# # #?????????????????? | | ????????# """ # #?????????????????? | | ????????# """ ## ##?????????????????? | | ????????# """ ## #??????????????????? | | ????????# ] ## #??????????????????? | +----------------------------------------------------+ Best States ------------- Heat Dissipation 25 Energy Generation 14 Energy Capacity 250 Matter Stores 300 Matter Capacity 300 Sight Range 16 Terrain Scan Density 10 Propulsion Shielding 33 Evasion (%) 50 Recoil Reduction 2 Item Schematics ----------------- None Robot Schematics ------------------ None Fabricated ------------ Nothing Alien Tech Used ----------------- None Achievements -------------- None Challenges ------------ None Game ------ Seed TransportDisruptorLauncher Manual? 0 Play Time 00:09:04 Cumulative 11.4 hours Start 2024.08.10 @ 15:37:38 End 2024.08.10 @ 19:23:56 Sessions 3 Manual Loads 0 Difficulty Rogue Special Mode None Game No. 21 Rogue 21 Adventurer 0 Explorer 0 Win Type - Total 0 Types 0/0/0/0/0/0/0/0/0 Lore% 9 Gallery% 16 Achievement% 16 Wizard Run 0 Options --------- Layout 1 ASCII 0 Keyboard 0 Movement Arrows Keybinds 0 Fullscreen 1 Font 24/Smallcaps Map View 50x35 Zoom Use 0% Tactical HUD 1 Map Filters NONE Filters NONE Steam 1 RUN: d4c09009-1ca8-4804-8ff8-70b44c310666